bitfinex/quotes_ETHUSD_20241018
["timestamp","ask_amount","ask_price","bid_price","bid_amount"]
[1729268011445,0.97517824,2632.0,2631.4,0.7062]
[1729268011608,0.78634042,2632.1,2631.4,0.7062]
[1729268012042,0.97506252,2632.0,2631.4,0.7062]
[1729268012203,0.78634042,2632.0,2631.4,0.7062]
[1729268012548,0.78634042,2631.9,2631.5,0.0460503]
[1729268012759,0.78634042,2632.0,2631.5,0.0460503]
[1729268013134,0.78634042,2632.0,2631.4,0.7062]
[1729268014033,0.97543608,2631.9,2631.4,0.7062]
[1729268014220,0.78634042,2631.9,2631.4,0.7062]
[1729268014416,0.78634042,2632.1,2631.4,0.7062]
[1729268014630,0.78634042,2632.2,2631.4,0.7062]
[1729268014827,0.78634042,2632.3,2631.4,0.7062]
[1729268015731,1.76232021,2632.3,2631.4,0.7062]
[1729268015937,0.78634042,2632.3,2631.4,0.7062]
[1729268016569,0.78634042,2632.4,2631.5,0.49234384]
[1729268016869,0.78634042,2632.4,2631.0,0.3849]
[1729268016870,0.78634042,2632.4,2631.6,0.7062]
[1729268017213,1.96585105,2632.5,2631.6,0.7062]
[1729268017445,0.78634042,2632.5,2631.6,0.7062]
[1729268017966,0.78634042,2632.5,2631.7,0.05748199]
[1729268018132,0.78634042,2632.5,2631.8,0.7062]
[1729268018467,1.76284123,2632.4,2631.8,0.7062]
[1729268018615,1.17951063,2632.6,2632.0,0.7062]
[1729268018616,0.78634042,2632.5,2632.0,0.7062]
[1729268019641,2.54919364,2632.8,2632.0,0.7062]
[1729268019642,0.78634042,2632.7,2632.0,0.7062]
[1729268020042,1.76290197,2632.7,2632.1,0.72655791]
[1729268020245,0.78634042,2632.7,2632.1,0.72655791]
[1729268020471,0.78634042,2632.7,2632.1,0.7062]
[1729268020619,0.97649419,2632.6,2632.1,0.7062]
[1729268020818,0.78634042,2632.7,2632.1,0.7062]
[1729268021321,0.97650864,2632.7,2632.1,0.7062]
[1729268021562,0.78634042,2632.7,2632.1,0.7062]
[1729268021866,1.76281372,2632.7,2632.1,0.7062]
[1729268022021,0.78634042,2632.7,2632.1,0.7062]
[1729268022223,0.78634042,2632.6,2631.3,0.7062]
[1729268022452,0.78634042,2632.3,2631.3,0.7062]
[1729268022922,0.78634042,2632.5,2631.3,0.7062]
[1729268023521,0.78634042,2632.6,2631.3,0.7062]
[1729268023836,0.78634042,2632.5,2631.3,0.7062]
[1729268025474,1.76243483,2632.4,2631.3,0.7062]
[1729268025672,0.78634042,2632.0,2631.3,0.7062]
[1729268025973,0.78634042,2631.6,2631.0,0.7112]
[1729268026126,0.78634042,2631.5,2631.0,0.7112]
[1729268026771,0.78634042,2631.3,2631.0,0.005]
[1729268026969,0.78634042,2631.2,2631.0,0.005]
[1729268027383,3.343582,2631.2,2631.0,0.005]
[1729268027526,2.15505221,2631.1,2631.0,0.005]
[1729268027722,0.97554158,2631.1,2631.0,0.005]
[1729268027931,2.15505221,2631.1,2631.0,0.005]
[1729268028130,1.7615965,2631.1,2631.0,0.005]
[1729268028439,0.97554158,2631.1,2631.0,0.005]
[1729268028637,1.76142279,2631.1,2631.0,0.005]
[1729268028885,1.76138835,2631.1,2631.0,0.005]
[1729268029045,0.97554158,2631.1,2631.0,0.005]
[1729268029377,1.76137949,2631.1,2631.0,0.005]
[1729268029588,2.15505221,2631.1,2631.0,0.005]
[1729268030639,0.97554158,2631.1,2631.0,0.005]
[1729268031251,1.7589947,2631.1,2631.0,0.005]
[1729268031451,0.97397304,2631.1,2631.0,0.005]
[1729268031636,1.75899171,2631.1,2631.0,0.005]
[1729268031831,2.15348367,2631.1,2631.0,0.005]
[1729268032078,2.76277199,2631.1,2631.0,0.005]
[1729268032685,2.88095969,2631.1,2630.9,0.13334166]
[1729268032847,0.97397304,2631.0,2630.9,0.13334166]
[1729268033333,1.17710461,2631.0,2630.9,0.13334166]
[1729268033535,2.8722939,2631.0,2630.9,0.13334166]
[1729268033848,5.22707774,2631.0,2630.9,0.13334166]
[1729268034054,6.5915305,2631.0,2630.9,0.13334166]
[1729268034249,1.6359,2630.9,2629.6,0.7062]
[1729268034449,1.5678,2630.4,2629.6,0.7062]
[1729268034691,0.78427942,2630.1,2629.3,0.7062]
[1729268035279,0.78427942,2630.3,2629.3,0.7062]
[1729268035482,2.35207942,2630.4,2629.3,0.7062]
[1729268035684,1.5678,2630.4,2629.3,0.7062]
[1729268036268,0.78427942,2630.7,2629.3,0.7062]
[1729268036594,0.78427942,2630.7,2629.5,0.7062]
[1729268036595,0.2744978,2630.7,2629.5,0.7062]
[1729268036887,0.78427942,2630.6,2629.5,0.7062]
[1729268038092,1.05877722,2630.7,2629.5,0.7062]
[1729268038254,0.38569964,2630.6,2629.5,0.7062]
[1729268039154,1.5123,2630.5,2629.5,0.7062]
[1729268041377,1.5123,2630.5,2629.6,0.07604528]
[1729268041592,1.17641913,2630.9,2629.6,0.07604528]
[1729268041593,1.5301,2630.9,2629.7,0.7062]
[1729268041741,1.8045978,2630.9,2629.7,0.7062]
[1729268042564,2.58887722,2630.9,2629.7,0.7062]
[1729268042753,1.6084,2630.7,2629.7,0.7062]
[1729268042956,0.78427942,2630.4,2628.8,3.8]
[1729268043158,0.78427942,2630.4,2628.3,1.18609376]
[1729268043440,2.39267942,2630.5,2628.3,1.18609376]
[1729268043769,1.75391479,2630.4,2628.3,1.30685158]
[1729268043972,2.49723814,2630.3,2628.3,1.30685158]
[1729268044203,1.97349367,2630.3,2628.4,0.53869368]
[1729268044643,1.75330095,2630.2,2628.4,0.53869368]
[1729268044848,1.5277,2630.1,2628.4,0.53869368]
[1729268045250,1.5277,2630.0,2628.4,0.53869368]
[1729268045489,2.31197942,2630.0,2628.4,0.53869368]
[1729268045642,1.75889794,2629.9,2628.4,0.53869368]
[1729268045847,0.78427942,2629.6,2628.2,0.2800852]
[1729268046158,1.5277,2629.5,2628.3,0.5862]
[1729268047006,1.5277,2629.8,2628.3,0.5862]
[1729268047148,1.5147,2630.1,2628.3,0.5862]
[1729268048095,1.5147,2630.5,2628.3,0.5862]
[1729268048245,0.25382474,2630.4,2628.3,0.5862]
[1729268048447,0.25382474,2630.4,2628.2,0.2800852]
[1729268048448,0.25382474,2630.4,2628.4,0.3799]
[1729268048670,0.25382474,2630.4,2628.8,0.5862]
[1729268049549,1.6558,2630.3,2628.8,0.5862]
[1729268052808,1.6558,2630.3,2628.8,0.70599002]
[1729268053912,1.6558,2630.3,2628.8,0.5862]
[1729268054111,2.44007942,2630.3,2628.8,0.5862]
[1729268054267,1.6558,2630.3,2628.8,0.5862]
[1729268055212,0.61470324,2630.2,2628.8,0.5862]
[1729268056216,1.56324848,2630.1,2628.8,0.5862]
[1729268057468,0.78427942,2630.6,2628.8,0.98232326]
[1729268057669,0.39177431,2630.7,2629.0,0.6565]
[1729268057879,0.78427942,2631.1,2629.0,0.6565]
[1729268058089,0.2744978,2631.1,2629.0,0.6565]
[1729268058285,0.78427942,2631.3,2629.0,0.6565]
[1729268058783,0.78427942,2631.4,2629.2,0.6565]
[1729268058974,4.49123242,2631.4,2629.2,0.6565]
[1729268059431,1.5224,2631.3,2629.2,0.6565]
[1729268060218,3.80025,2631.4,2629.5,0.6565]
[1729268060581,1.5089,2631.0,2629.5,0.6565]
[1729268060920,1.5636,2630.9,2629.5,0.6565]
[1729268061086,2.34787942,2631.2,2629.5,0.6565]
[1729268061273,2.1334794,2631.2,2629.5,0.6565]
[1729268061470,1.9553139,2631.5,2629.5,0.6565]
[1729268062933,0.3917139,2631.5,2629.5,0.6565]
[1729268063217,0.3917139,2631.5,2629.7,0.6565]
[1729268063421,0.3917139,2631.5,2629.9,1.0364]
[1729268063570,0.02257839,2632.0,2630.0,1.02762326]
[1729268063772,0.02257839,2632.0,2630.1,0.6565]
[1729268064017,0.02257839,2632.0,2630.2,7.906]
[1729268064330,1.56855885,2633.0,2630.2,7.906]
[1729268064331,0.78427942,2633.0,2630.8,0.6565]
[1729268064467,0.78427942,2633.3,2630.9,0.6565]
[1729268064672,0.78427942,2633.4,2630.9,0.6565]
[1729268064868,0.78427942,2633.2,2631.1,0.6565]
[1729268065115,1.6446,2632.7,2631.1,0.6565]
[1729268065419,2.42887942,2632.7,2631.1,0.6565]
[1729268066288,0.78427942,2632.7,2631.1,0.6565]
[1729268066500,0.78427942,2632.9,2631.1,0.6565]
[1729268066820,0.35133986,2632.8,2631.1,0.6565]
[1729268066975,0.78427942,2633.1,2631.1,0.6565]
[1729268067172,0.78427942,2633.2,2631.1,0.6565]
[1729268067809,2.33697942,2633.3,2631.1,0.6565]
[1729268068014,1.7501535,2633.2,2631.1,0.6565]
[1729268068220,0.33028535,2633.1,2631.1,0.6565]
[1729268068382,1.11456477,2633.1,2631.1,0.6565]
[1729268068979,1.74990831,2633.0,2631.1,0.6565]
[1729268069180,0.78427942,2633.0,2631.1,0.7758218]
[1729268069443,1.11456477,2633.1,2631.1,0.7758218]
[1729268069679,0.66173583,2633.0,2631.1,0.7758218]
[1729268069987,1.62742374,2633.0,2631.1,0.7758218]
[1729268070157,0.66173583,2633.0,2631.1,0.7758218]
[1729268070353,1.44601525,2633.0,2631.1,0.7758218]
[1729268071339,0.66173583,2633.0,2631.1,0.7758218]
[1729268071543,1.11456477,2633.1,2631.1,0.7758218]
[1729268071955,5.29228037,2633.0,2631.1,0.6565]
[1729268072144,1.75018539,2632.9,2631.1,0.6565]
[1729268072342,0.78427942,2632.9,2631.1,0.6565]
[1729268072578,1.11456477,2633.1,2631.1,0.6565]
[1729268072746,1.75001729,2633.0,2631.1,0.6565]
[1729268072943,1.11456477,2633.1,2631.1,0.6565]
[1729268073268,0.33028535,2633.1,2631.1,0.6565]
[1729268073444,0.78427942,2633.3,2631.1,0.6565]
[1729268074185,0.78427942,2633.4,2631.2,0.6565]
[1729268074688,0.78427942,2633.5,2631.3,0.03821819]
[1729268074843,0.38985439,2633.4,2631.4,0.6565]
[1729268076277,0.38985439,2633.4,2631.5,0.6565]
[1729268077444,1.93784716,2633.6,2631.5,0.6565]
[1729268078077,1.5458,2633.6,2631.5,0.6565]
[1729268078442,5.11065382,2633.8,2631.5,0.6565]
[1729268078443,4.71831983,2633.8,2631.5,0.6565]
[1729268078648,1.17622485,2633.8,2631.5,0.6565]
[1729268078947,0.39194543,2633.8,2631.5,0.6565]
[1729268079146,0.19722454,2633.7,2631.7,0.6565]
[1729268079385,0.59423279,2634.0,2631.7,0.6565]
[1729268080613,4.92060719,2634.0,2631.7,0.6565]
[1729268080997,0.59423279,2634.0,2631.7,0.6565]
[1729268082217,0.59423279,2634.0,2631.7,0.77398705]
[1729268082566,2.03484505,2634.2,2631.7,0.77398705]
[1729268082567,1.6428,2634.2,2631.7,0.77398705]
[1729268082760,4.3263744,2634.3,2631.7,0.77398705]
[1729268082761,0.59691744,2634.1,2631.8,0.6565]
[1729268082967,0.69646268,2634.1,2631.8,0.6565]
[1729268083178,0.65913322,2634.1,2631.8,0.6565]
[1729268083819,4.3263744,2634.0,2631.8,0.6565]
[1729268084049,0.49855076,2633.9,2631.8,0.6565]
[1729268084316,4.3263744,2633.7,2631.8,0.6565]
[1729268084894,1.553,2633.8,2631.8,0.6565]
[1729268085101,0.49855076,2633.9,2631.8,0.6565]
[1729268085415,1.5922,2634.1,2631.8,0.6565]
[1729268085810,0.08295145,2634.0,2631.8,0.6565]
[1729268090501,0.05530408,2634.0,2631.8,0.6565]
[1729268090716,0.07110524,2634.0,2631.8,0.6565]
[1729268092315,0.04977367,2634.0,2631.8,0.6565]
[1729268092922,0.0622486,2634.0,2631.8,0.6565]
[1729268093620,0.0622486,2634.0,2632.0,0.6565]
[1729268094254,0.08299813,2634.0,2632.0,0.6565]
[1729268094943,4.3263744,2633.7,2632.0,0.6565]
[1729268095149,0.43263744,2633.6,2632.0,0.6565]
[1729268095556,3.79687,2633.8,2632.0,0.6565]
[1729268095880,5.44514,2633.4,2632.0,0.6565]
[1729268096077,1.6477,2633.4,2632.0,0.6565]
[1729268096383,0.20397945,2633.3,2632.0,0.6565]
[1729268097242,1.6151,2633.7,2632.0,0.6565]
[1729268097882,1.6533,2633.9,2632.0,0.6565]
[1729268098580,5.9796744,2633.9,2632.0,0.6565]
[1729268098972,1.6533,2633.9,2632.0,0.6565]
[1729268099170,0.39207868,2634.0,2632.0,0.6565]
[1729268099372,2.35337942,2634.4,2632.0,0.6565]
[1729268099603,0.09962576,2634.0,2632.1,0.6565]
[1729268101985,0.05570649,2634.2,2632.4,0.6565]
[1729268102185,0.0558859,2634.3,2632.4,0.6565]
[1729268102384,0.05552706,2634.1,2632.4,0.6565]
[1729268102708,0.05534761,2634.0,2632.4,0.6565]
[1729268103018,0.78427942,2634.3,2632.4,0.6565]
[1729268103205,0.06228357,2634.0,2632.4,0.77511088]
[1729268103381,0.78427942,2634.0,2632.4,0.77511088]
[1729268103580,0.84656299,2634.0,2632.5,0.6565]
[1729268103899,0.78427942,2633.3,2632.5,0.6565]
[1729268104106,4.77807928,2633.2,2632.5,0.6565]
[1729268104311,0.78427942,2632.9,2632.5,0.6565]
[1729268104514,0.78427942,2632.7,2631.3,0.6565]
[1729268104937,1.93979378,2633.1,2631.0,0.12184017]
[1729268104938,0.78427942,2632.9,2631.5,0.6565]
[1729268105080,0.78427942,2633.1,2631.5,0.6565]
[1729268105283,0.78427942,2633.0,2631.5,0.6565]
[1729268105586,0.78427942,2633.2,2631.5,0.6565]
[1729268106128,0.96593709,2633.1,2631.5,0.6565]
[1729268106302,1.07694298,2633.1,2631.5,0.77368759]
[1729268106938,0.78427942,2633.1,2631.5,0.77368759]
[1729268107164,0.78427942,2633.2,2631.7,0.6565]
[1729268108165,1.75297415,2633.1,2631.7,0.6565]
[1729268108459,0.78427942,2632.9,2631.7,0.6565]
[1729268108666,0.78427942,2632.7,2631.7,0.6565]
[1729268108871,1.75276848,2632.6,2631.7,0.6565]
[1729268109155,1.75320154,2632.5,2631.7,0.6565]
[1729268109371,0.78427942,2632.5,2631.7,0.6565]
[1729268109671,0.78427942,2632.7,2631.8,0.6565]
[1729268109832,0.78427942,2632.8,2631.8,0.6565]
[1729268110037,0.78427942,2633.0,2632.0,0.6565]
[1729268111660,0.78427942,2633.1,2632.0,0.6565]
[1729268111882,0.78427942,2633.2,2632.0,0.6565]
[1729268112285,0.78427942,2633.2,2632.0,0.77439025]
[1729268112449,1.17641913,2633.3,2632.0,0.77439025]
[1729268112450,1.75431874,2633.1,2632.0,0.77439025]
[1729268112653,0.78427942,2633.2,2632.0,0.77439025]
[1729268112880,0.78427942,2633.3,2632.1,0.6565]
[1729268113043,1.94450878,2633.6,2632.1,0.6565]
[1729268113044,0.78427942,2633.6,2632.2,0.6565]
[1729268113240,0.78427942,2633.7,2632.4,0.6565]
[1729268113559,0.78427942,2633.4,2632.4,0.6565]
[1729268113762,0.78427942,2633.5,2632.4,0.6565]
[1729268114752,0.97058038,2633.4,2632.4,0.6565]
[1729268114957,0.78427942,2633.5,2632.4,0.6565]
[1729268115156,0.97053814,2633.4,2632.6,0.6565]
[1729268115357,0.97046801,2633.3,2632.6,0.6565]
[1729268115553,0.78427942,2633.3,2632.6,0.6565]
[1729268115779,0.78427942,2633.4,2632.6,0.6565]
[1729268115994,0.78427942,2633.3,2632.6,0.6565]
[1729268116187,0.78427942,2633.4,2632.6,0.6565]
[1729268116483,0.96987086,2633.3,2632.6,0.6565]
[1729268116635,0.78427942,2633.4,2632.6,0.6565]
[1729268116837,0.96988071,2633.3,2632.6,0.6565]
[1729268117042,0.78427942,2633.2,2632.6,0.6565]
[1729268117355,0.78427942,2633.0,2632.6,0.6565]
[1729268117558,1.75420372,2632.9,2632.6,0.6565]
[1729268117874,0.78427942,2633.1,2632.6,0.6565]
[1729268118666,0.78427942,2633.2,2632.6,0.6565]
[1729268118846,0.78427942,2633.3,2632.6,0.6565]
[1729268119382,0.78427942,2633.4,2632.6,0.6565]
[1729268119761,0.78427942,2633.5,2632.6,0.6565]
[1729268121314,0.78427942,2633.6,2632.7,0.6565]
[1729268121588,0.78427942,2633.8,2632.7,0.6565]
[1729268121973,0.78427942,2633.9,2632.7,0.6565]
[1729268123641,0.78427942,2633.9,2632.5,0.3799]
[1729268123913,0.78427942,2633.9,2632.6,0.6565]
[1729268124329,1.17641913,2634.0,2632.8,0.6565]
[1729268124330,0.78427942,2634.0,2632.8,0.6565]
[1729268125118,0.78427942,2634.1,2632.8,0.6565]
[1729268125322,0.78427942,2634.2,2632.8,0.6565]
[1729268125677,0.78427942,2634.3,2632.8,0.6565]
[1729268125876,0.78427942,2634.1,2632.8,0.6565]
[1729268126582,0.78427942,2634.2,2632.8,0.6565]
[1729268126990,0.64621567,2634.1,2632.8,0.6565]
[1729268127220,0.78427942,2634.2,2632.6,0.6565]
[1729268128402,0.78427942,2634.2,2632.9,0.6565]
[1729268128603,0.98034928,2634.2,2632.9,0.6565]
[1729268128818,0.78427942,2633.9,2632.9,0.6565]
[1729268129174,0.64552667,2633.9,2632.9,0.6565]
[1729268129377,0.78427942,2634.0,2632.9,0.6565]
[1729268129618,0.19606986,2634.2,2632.9,0.6565]
[1729268129969,0.59396207,2634.8,2632.9,0.6565]
[1729268130134,0.34848855,2634.7,2632.9,0.6565]
[1729268130460,0.59396207,2634.8,2632.9,0.6565]
[1729268130681,0.78047446,2634.3,2632.9,0.6565]
[1729268130878,0.78047446,2634.0,2632.9,0.6565]
[1729268131172,0.78047446,2633.9,2632.9,0.6565]
[1729268131320,0.78047446,2633.8,2632.9,0.6565]
[1729268131527,0.78047446,2633.6,2632.9,0.6565]
[1729268131722,1.74793538,2633.5,2632.9,0.6565]
[1729268132032,0.78047446,2633.2,2632.9,0.6565]
[1729268132230,2.39318423,2633.2,2632.9,0.6565]
[1729268132419,0.07206226,2633.1,2632.9,0.6565]
[1729268132820,0.78047446,2633.4,2632.9,0.6565]
[1729268133123,0.64492011,2633.4,2632.9,0.6565]
[1729268133339,0.06984902,2633.3,2632.9,0.6565]
[1729268133540,0.78047446,2633.6,2632.9,0.6565]
[1729268133743,0.06974289,2633.2,2632.9,0.6565]
[1729268134043,0.78047446,2633.5,2632.9,0.6565]
[1729268134239,0.06903676,2633.1,2632.9,0.6565]
[1729268134442,0.78047446,2633.5,2632.9,0.6565]
[1729268134669,1.17071169,2633.7,2632.9,0.6565]
[1729268134670,0.06893061,2633.0,2632.9,0.6565]
[1729268134838,0.78047446,2633.5,2632.9,0.6565]
[1729268135041,0.06893061,2633.0,2632.9,0.6565]
[1729268135243,0.78047446,2633.7,2632.9,0.6565]
[1729268135462,0.06893061,2633.0,2632.9,0.6565]
[1729268135639,0.78047446,2633.7,2632.9,0.6565]
[1729268135840,0.06893061,2633.0,2632.9,0.6565]
[1729268136078,0.78047446,2633.7,2632.9,0.6565]
[1729268136249,0.06893061,2633.0,2632.9,0.6565]
[1729268136786,0.78047446,2633.8,2632.9,0.6565]
[1729268136988,0.06893061,2633.0,2632.9,0.6565]
[1729268137285,0.78047446,2633.5,2632.9,0.6565]
[1729268137441,0.06893061,2633.0,2632.9,0.6565]
[1729268137636,0.78047446,2633.4,2632.9,0.6565]
[1729268137869,0.06893061,2633.0,2632.9,0.6565]
[1729268138069,0.78047446,2633.3,2632.9,0.6565]
[1729268138342,0.78047446,2633.4,2632.9,0.6565]
[1729268138646,0.84961735,2633.2,2632.9,0.6565]
[1729268138878,2.39361086,2633.1,2632.0,0.6565]
[1729268139198,0.06903676,2633.1,2632.0,0.6565]
[1729268139889,0.84951122,2633.1,2632.0,0.6565]
[1729268140052,0.78047446,2632.9,2632.0,0.6565]
[1729268140385,0.068617,2632.8,2632.0,0.6565]
[1729268141148,0.78047446,2633.0,2632.0,0.6565]
[1729268141352,0.06846957,2632.7,2632.0,0.6565]
[1729268141545,0.78047446,2633.1,2632.0,0.6565]
[1729268141775,0.06836339,2632.6,2632.0,0.6565]
[1729268141944,0.78047446,2632.8,2632.0,0.6565]
[1729268142293,0.06825721,2632.5,2632.0,0.6565]
[1729268142475,0.78047446,2632.6,2632.0,0.6565]
[1729268142644,0.06813225,2632.4,2631.8,0.6565]
[1729268142845,1.39914914,2632.7,2631.8,0.6565]
[1729268142846,0.8487129,2632.5,2631.8,0.6565]
[1729268143054,0.06802605,2632.3,2631.8,0.6565]
[1729268143258,0.06813225,2632.4,2631.8,0.91135]
[1729268143443,0.06791984,2632.2,2631.8,0.6565]
[1729268143669,0.06802605,2632.3,2631.8,0.6565]
[1729268143869,0.06781362,2632.1,2631.8,0.6565]
[1729268144044,2.36707446,2632.4,2631.8,0.6565]
[1729268144045,0.06791984,2632.2,2631.8,0.6565]
[1729268144246,0.0677074,2632.0,2631.7,1.892]
[1729268144495,2.36707446,2632.4,2631.7,1.892]
[1729268144695,0.06760117,2631.9,2631.7,1.892]
[1729268144879,0.78047446,2632.1,2631.7,1.892]
[1729268145086,1.17071169,2632.2,2631.7,1.892]
[1729268145087,0.06735226,2631.8,2631.7,1.892]
[1729268145249,0.78047446,2632.1,2631.7,1.892]
[1729268145450,0.06735226,2631.8,2631.7,1.892]
[1729268145649,0.78047446,2632.1,2631.7,1.892]
[1729268146299,0.06756473,2632.0,2631.7,1.892]
[1729268146699,0.78047446,2632.2,2631.7,1.892]
[1729268146998,0.35377862,2632.3,2631.7,1.892]
[1729268147309,0.06764279,2632.1,2631.8,0.03414933]
[1729268147591,0.06753657,2632.0,2631.9,0.6565]
[1729268147790,2.41707446,2632.7,2631.9,0.6565]
[1729268147989,0.06753657,2632.0,2631.9,0.6565]
[1729268148203,2.41707446,2632.7,2631.9,0.6565]
[1729268148408,0.06753657,2632.0,2631.7,1.892]
[1729268148714,0.78047446,2632.4,2631.7,1.892]
[1729268148880,0.06743033,2631.9,2631.7,1.892]
[1729268149205,0.78047446,2632.4,2631.7,1.892]
[1729268149206,0.06732409,2631.8,2631.7,1.892]
[1729268149360,0.78047446,2632.3,2631.7,1.892]
[1729268149562,0.06732409,2631.8,2631.7,1.892]
[1729268149763,0.78047446,2632.3,2631.7,1.892]
[1729268149961,0.06732409,2631.8,2631.7,1.892]
[1729268150205,1.08951838,2632.4,2631.7,1.892]
[1729268150369,0.06732409,2631.8,2631.7,1.892]
[1729268150570,1.5941,2632.1,2631.7,1.892]
[1729268150809,0.06732409,2631.8,2631.7,1.892]
[1729268151006,0.78047446,2632.4,2631.8,0.6565]
[1729268151207,0.35877861,2632.6,2631.8,0.6565]
[1729268151410,0.78047446,2632.7,2631.8,0.6565]
[1729268151567,1.42469654,2632.8,2631.8,0.6565]
[1729268151770,2.39101402,2632.7,2631.8,0.6565]
[1729268152020,0.78047446,2632.7,2631.8,0.6565]
[1729268153269,0.25954241,2632.7,2631.8,0.91135]
[1729268155014,0.78047446,2632.8,2631.8,0.91135]
[1729268155212,0.78047446,2632.9,2631.8,0.91135]
[1729268155715,1.42433374,2632.9,2631.8,0.91135]
[1729268156009,0.64385928,2632.8,2631.8,0.91135]
[1729268156165,0.78047446,2632.9,2631.8,0.91135]
[1729268156369,1.92582315,2632.9,2631.9,0.280335]
[1729268156611,2.89174183,2632.9,2631.9,0.280335]
[1729268156912,2.39031832,2632.8,2631.9,0.280335]
[1729268157076,2.39037725,2632.7,2631.8,0.6565]
[1729268157286,3.9714298,2632.6,2631.8,0.6565]
[1729268157609,2.39012692,2632.5,2631.8,0.6565]
[1729268157832,0.39713269,2632.4,2631.8,0.6565]
[1729268158166,2.36167446,2632.6,2631.8,0.6565]
[1729268158366,1.5812,2632.6,2631.8,0.6565]
[1729268158570,0.64384375,2632.5,2631.8,0.6565]
[1729268158806,2.36167446,2632.6,2631.8,0.6565]
[1729268159073,0.64384933,2632.5,2631.8,0.6565]
[1729268159273,0.30055238,2632.4,2631.8,0.6565]
[1729268159775,0.78047446,2632.3,2631.7,1.892]
[1729268160200,0.78047446,2632.2,2631.7,1.892]
[1729268160514,1.5362,2632.1,2631.7,1.892]
[1729268160700,0.23166745,2632.0,2631.7,1.892]
[1729268163438,0.06484359,2631.9,2631.7,1.892]
[1729268163641,0.84531805,2631.9,2630.9,0.6565]
[1729268163935,0.06484359,2631.9,2630.9,0.6565]
[1729268164102,0.06484359,2631.9,2631.0,0.95537236]
[1729268164307,0.06484359,2631.9,2631.1,0.6565]
[1729268164523,3.15034892,2632.7,2631.3,0.6565]
[1729268164524,2.36987446,2632.7,2631.3,0.6565]
[1729268164722,2.06237243,2632.9,2631.5,0.6565]
[1729268164723,0.06463031,2631.8,2631.5,0.6565]
[1729268164930,0.50142351,2632.9,2631.7,0.6565]
[1729268165096,0.2871298,2632.8,2631.9,0.6565]
[1729268165423,0.06560308,2632.7,2632.1,0.6565]
[1729268165631,0.78047446,2633.4,2632.2,0.67823372]
[1729268165799,1.17071169,2633.5,2632.2,0.67823372]
[1729268165800,0.06336289,2632.6,2632.2,0.67823372]
[1729268166001,0.78047446,2633.6,2632.2,0.67823372]
[1729268166201,1.52991499,2633.7,2632.2,0.67823372]
[1729268166202,0.06336938,2632.5,2632.2,0.67823372]
[1729268166511,0.78047446,2633.9,2632.2,0.67823372]
[1729268166714,0.34805861,2633.8,2632.3,0.6565]
[1729268166895,0.41280775,2633.8,2632.3,0.6565]
[1729268168025,1.37813729,2633.8,2632.3,0.6565]
[1729268168244,1.19328221,2633.8,2632.3,0.6565]
[1729268168909,1.19328221,2633.8,2632.3,0.77374369]
[1729268169099,0.23639939,2633.7,2632.3,0.77374369]
[1729268169524,1.01687385,2633.7,2632.3,0.77374369]
[1729268169727,0.06453696,2633.6,2632.3,0.77374369]
[1729268171395,0.84501142,2633.6,2632.3,0.77374369]
[1729268171599,0.06453696,2633.6,2632.3,0.77374369]
[1729268171837,0.32455507,2633.6,2632.3,0.77374369]
[1729268172398,0.06453696,2633.6,2632.3,0.77374369]
[1729268173057,0.78047446,2633.5,2632.3,0.77374369]
[1729268173205,0.84490531,2633.5,2632.3,0.77374369]
[1729268173602,0.78047446,2633.4,2632.3,0.6565]
[1729268173802,0.78047446,2633.1,2632.3,0.6565]
[1729268174050,0.19511862,2633.0,2632.3,0.6565]
[1729268174346,0.25912957,2633.0,2632.3,0.6565]
[1729268175642,1.03960403,2633.0,2632.3,0.6565]
[1729268175950,0.25912957,2633.0,2632.3,0.6565]
[1729268176238,0.06401095,2633.0,2632.3,0.6565]
[1729268176451,0.06401095,2633.0,2632.5,0.6565]
[1729268176637,1.17071169,2633.4,2632.5,0.6565]
[1729268176638,0.78047446,2633.4,2632.5,0.6565]
[1729268176798,0.06401933,2632.9,2632.5,0.6565]
[1729268176998,0.78047446,2633.7,2632.5,0.6565]
[1729268177201,0.06391317,2632.8,2632.5,0.6565]
[1729268177456,1.17071169,2633.9,2632.7,0.6565]
[1729268177457,0.78047446,2633.8,2632.7,0.6565]
[1729268177655,1.56094892,2634.1,2632.7,0.6565]
[1729268177656,0.78047446,2634.0,2632.7,0.6565]
[1729268177850,0.06267879,2633.7,2632.8,0.6565]
[1729268178017,1.17071169,2634.2,2632.8,0.6565]
[1729268178018,0.78047446,2634.2,2632.8,0.6565]
[1729268178203,0.06257269,2633.6,2632.8,0.6565]
[1729268178548,0.78047446,2634.3,2632.8,0.6565]
[1729268178729,0.06031194,2633.5,2632.8,0.6565]
[1729268178934,0.97559308,2634.3,2632.8,0.6565]
[1729268179315,0.06105449,2634.2,2632.8,0.6565]
[1729268180205,0.06105449,2634.2,2632.9,0.6565]
[1729268180432,0.78047446,2634.6,2633.0,0.6565]
[1729268180618,0.0611079,2634.1,2633.0,0.6565]
[1729268180814,0.78047446,2634.5,2633.0,0.6565]
[1729268180815,0.78047446,2634.4,2633.0,0.6565]
[1729268181015,0.06100184,2634.0,2633.0,0.6565]
[1729268181228,1.16259212,2634.3,2633.1,0.6565]
[1729268181229,0.78047446,2634.3,2633.1,0.6565]
[1729268181442,0.06089577,2633.9,2633.1,0.6565]
[1729268181645,1.56094892,2634.8,2633.1,0.6565]
[1729268181646,0.78047446,2634.6,2633.1,0.6565]
[1729268181949,0.06078969,2633.8,2633.1,0.6565]
[1729268182107,0.78047446,2634.7,2633.1,0.6565]
[1729268182108,0.78047446,2634.8,2633.1,0.6565]
[1729268182328,0.78047446,2634.8,2633.2,0.6565]
[1729268182329,1.29349797,2634.8,2633.2,0.6565]
[1729268182529,0.06174411,2634.7,2633.2,0.6565]
[1729268182965,0.06174411,2634.7,2633.3,0.6565]
[1729268183752,2.39857446,2635.0,2633.3,0.6565]
[1729268184076,0.35692862,2634.9,2633.3,0.6565]
[1729268184227,0.41888474,2634.9,2633.3,0.6565]
[1729268185459,0.06195612,2634.9,2633.3,0.6565]
[1729268188334,1.5272,2634.8,2633.3,0.6565]
[1729268188671,0.06174411,2634.7,2633.3,0.6565]
[1729268191019,1.6657,2635.0,2633.3,0.6565]
[1729268191604,0.06195612,2634.9,2633.3,0.6565]